[Event "*** SCC Grand Prix: Titled Tuesday Blitz"]
[Site "Chess.com"]
[Date "2020.06.02"]
[Round "8"]
[White "BakaPG"]
[Black "Jumbo"]
[Result "1-0"]
[WhiteElo "2723"]
[BlackElo "2836"]
[TimeControl "180+1"]
[EndTime "11:37:05 PDT"]
[Termination "BakaPG won on time"]

1. e4 {[%clk 0:03:00.9]} 1... c5 {[%clk 0:02:58.7]} 2. Nf3 {[%clk 0:03:00.5]}
2... d6 {[%clk 0:02:59.2]} 3. d4 {[%clk 0:02:59]} 3... cxd4 {[%clk 0:03:00.1]}
4. Nxd4 {[%clk 0:02:59.4]} 4... Nf6 {[%clk 0:03:00.6]} 5. Nc3 {[%clk 0:02:59.4]}
5... Nc6 {[%clk 0:03:00.8]} 6. f3 {[%clk 0:02:55.6]} 6... e6 {[%clk 0:02:57.6]}
7. Be3 {[%clk 0:02:51.1]} 7... a6 {[%clk 0:02:57.3]} 8. Qd2 {[%clk 0:02:48]}
8... h5 {[%clk 0:02:57.1]} 9. O-O-O {[%clk 0:02:45.4]} 9... Bd7 {[%clk
0:02:57.5]} 10. Kb1 {[%clk 0:02:43]} 10... b5 {[%clk 0:02:47]} 11. Bd3 {[%clk
0:02:24.5]} 11... Ne5 {[%clk 0:02:08.1]} 12. f4 {[%clk 0:02:09]} 12... Nxd3
{[%clk 0:02:06]} 13. cxd3 {[%clk 0:02:07.7]} 13... Qc7 {[%clk 0:02:02.8]} 14.
Rc1 {[%clk 0:02:05]} 14... Qb7 {[%clk 0:02:02.7]} 15. e5 {[%clk 0:01:57]} 15...
Nd5 {[%clk 0:01:54.5]} 16. Ne4 {[%clk 0:01:54.2]} 16... dxe5 {[%clk 0:01:32.7]}
17. fxe5 {[%clk 0:01:52.8]} 17... Nxe3 {[%clk 0:01:32.9]} 18. Qxe3 {[%clk
0:01:52]} 18... Qd5 {[%clk 0:01:33.3]} 19. Nf3 {[%clk 0:01:43.3]} 19... Be7
{[%clk 0:01:24.6]} 20. h4 {[%clk 0:01:37.8]} 20... b4 {[%clk 0:01:21.9]} 21. Rc4
{[%clk 0:01:32.4]} 21... Qa5 {[%clk 0:01:05.3]} 22. Rhc1 {[%clk 0:01:18.9]}
22... O-O {[%clk 0:01:02.8]} 23. Rc7 {[%clk 0:01:12.7]} 23... Rfd8 {[%clk
0:01:01.3]} 24. d4 {[%clk 0:00:50.6]} 24... Rac8 {[%clk 0:00:54.8]} 25. Rxc8
{[%clk 0:00:42.3]} 25... Bxc8 {[%clk 0:00:40.5]} 26. Qf4 {[%clk 0:00:36]} 26...
Bb7 {[%clk 0:00:34.4]} 27. Neg5 {[%clk 0:00:34.5]} 27... Rf8 {[%clk 0:00:34.1]}
28. g4 {[%clk 0:00:31.6]} 28... b3 {[%clk 0:00:23.3]} 29. axb3 {[%clk
0:00:30.5]} 29... Bd5 {[%clk 0:00:22.3]} 30. Rc3 {[%clk 0:00:25.3]} 30... Qb5
{[%clk 0:00:20]} 31. Nd2 {[%clk 0:00:19.6]} 31... Bb4 {[%clk 0:00:16.3]} 32.
gxh5 {[%clk 0:00:12.4]} 32... Bxc3 {[%clk 0:00:14.8]} 33. bxc3 {[%clk
0:00:12.6]} 33... Bxb3 {[%clk 0:00:11.2]} 34. h6 {[%clk 0:00:10.1]} 34... Bd5+
{[%clk 0:00:07.3]} 35. Kc2 {[%clk 0:00:07]} 35... Qa4+ {[%clk 0:00:05.9]} 36.
Kd3 {[%clk 0:00:06.3]} 36... Qb5+ {[%clk 0:00:04.7]} 37. Ke3 {[%clk 0:00:03.1]}
37... Qc6 {[%clk 0:00:03.2]} 38. Nge4 {[%clk 0:00:02.9]} 38... Bxe4 {[%clk
0:00:02.8]} 39. Nxe4 {[%clk 0:00:02.4]} 39... f5 {[%clk 0:00:02.6]} 40. Qg5
{[%clk 0:00:01.7]} 1-0

[Event "*** SCC Grand Prix: Titled Tuesday Blitz"]
[Site "Chess.com"]
[Date "2020.06.02"]
[Round "8"]
[White "colegiodemadrid"]
[Black "Gromes7"]
[Result "1-0"]
[WhiteElo "2377"]
[BlackElo "2052"]
[TimeControl "180+1"]
[EndTime "11:37:05 PDT"]
[Termination "colegiodemadrid won by checkmate"]

1. e4 {[%clk 0:03:00.9]} 1... c5 {[%clk 0:02:59.1]} 2. Nf3 {[%clk 0:03:00.6]}
2... a6 {[%clk 0:02:59.5]} 3. Nc3 {[%clk 0:02:59.6]} 3... Nc6 {[%clk 0:02:58.6]}
4. d4 {[%clk 0:02:59.2]} 4... cxd4 {[%clk 0:02:58.8]} 5. Nxd4 {[%clk 0:03:00.1]}
5... e5 {[%clk 0:02:59.1]} 6. Nde2 {[%clk 0:02:32.2]} 6... Bc5 {[%clk
0:02:55.5]} 7. g3 {[%clk 0:02:19.3]} 7... Nf6 {[%clk 0:02:51.9]} 8. Bg2 {[%clk
0:02:15.9]} 8... O-O {[%clk 0:02:46.2]} 9. O-O {[%clk 0:02:15.8]} 9... d6 {[%clk
0:02:46.1]} 10. Bg5 {[%clk 0:02:15.2]} 10... h6 {[%clk 0:02:46]} 11. Bxf6 {[%clk
0:02:15.2]} 11... Qxf6 {[%clk 0:02:46.1]} 12. Nd5 {[%clk 0:02:15.6]} 12... Qd8
{[%clk 0:02:45]} 13. a3 {[%clk 0:02:05.1]} 13... Be6 {[%clk 0:02:33.6]} 14. Nec3
{[%clk 0:02:04]} 14... Nd4 {[%clk 0:02:27.2]} 15. Qd3 {[%clk 0:02:02]} 15... Rc8
{[%clk 0:02:19.1]} 16. Ne2 {[%clk 0:01:19.7]} 16... Bxd5 {[%clk 0:02:06.6]} 17.
exd5 {[%clk 0:01:18.9]} 17... f5 {[%clk 0:01:58.5]} 18. Nxd4 {[%clk 0:01:18.6]}
18... Bxd4 {[%clk 0:01:57.9]} 19. c3 {[%clk 0:01:19]} 19... Ba7 {[%clk
0:01:55.4]} 20. Kh1 {[%clk 0:01:16.8]} 20... e4 {[%clk 0:01:47.3]} 21. Qd2
{[%clk 0:01:10.4]} 21... Qb6 {[%clk 0:01:42.6]} 22. Rad1 {[%clk 0:01:02.3]}
22... Rce8 {[%clk 0:01:40.9]} 23. Qc2 {[%clk 0:00:59.4]} 23... Kh8 {[%clk
0:01:28.4]} 24. c4 {[%clk 0:00:51.3]} 24... Re7 {[%clk 0:01:07.7]} 25. b4 {[%clk
0:00:37.9]} 25... Rc8 {[%clk 0:01:02.3]} 26. Qe2 {[%clk 0:00:28.7]} 26... Rec7
{[%clk 0:00:58]} 27. Rc1 {[%clk 0:00:23.4]} 27... Qd4 {[%clk 0:00:55.1]} 28. Qh5
{[%clk 0:00:23]} 28... Qf6 {[%clk 0:00:52.6]} 29. Qe2 {[%clk 0:00:21]} 29... Bd4
{[%clk 0:00:37.2]} 30. Rc2 {[%clk 0:00:18.7]} 30... b5 {[%clk 0:00:29.5]} 31.
Rfc1 {[%clk 0:00:16.1]} 31... bxc4 {[%clk 0:00:28.8]} 32. Rxc4 {[%clk 0:00:17]}
32... Rxc4 {[%clk 0:00:26.9]} 33. Rxc4 {[%clk 0:00:17.9]} 33... Rxc4 {[%clk
0:00:26.5]} 34. Qxc4 {[%clk 0:00:18.8]} 34... Bxf2 {[%clk 0:00:26.4]} 35. Qxa6
{[%clk 0:00:19]} 35... Qa1+ {[%clk 0:00:24.3]} 36. Bf1 {[%clk 0:00:18.4]} 36...
e3 {[%clk 0:00:20.6]} 37. Qc8+ {[%clk 0:00:17.3]} 37... Kh7 {[%clk 0:00:18.8]}
38. Qxf5+ {[%clk 0:00:17.4]} 38... Kg8 {[%clk 0:00:19]} 39. Qe6+ {[%clk
0:00:17.2]} 39... Kh7 {[%clk 0:00:19.2]} 40. Kg2 {[%clk 0:00:17.5]} 40... Qxa3
{[%clk 0:00:14.7]} 41. Qf5+ {[%clk 0:00:16.5]} 41... Kg8 {[%clk 0:00:14.2]} 42.
Bd3 {[%clk 0:00:16.9]} 42... Qc1 {[%clk 0:00:10]} 43. Qe6+ {[%clk 0:00:15.8]}
43... Kf8 {[%clk 0:00:08.7]} 44. Qxd6+ {[%clk 0:00:11.4]} 44... Kf7 {[%clk
0:00:08.4]} 45. Bg6+ {[%clk 0:00:09.9]} 45... Kg8 {[%clk 0:00:02.7]} 46. Qd8#
{[%clk 0:00:09.9]} 1-0

[Event "*** SCC Grand Prix: Titled Tuesday Blitz"]
[Site "Chess.com"]
[Date "2020.06.02"]
[Round "8"]
[White "Juanovic"]
[Black "fridaywins"]
[Result "0-1"]
[WhiteElo "2115"]
[BlackElo "2232"]
[TimeControl "180+1"]
[EndTime "11:37:06 PDT"]
[Termination "fridaywins won by resignation"]

1. e4 {[%clk 0:03:00.9]} 1... e5 {[%clk 0:02:57.1]} 2. Nf3 {[%clk 0:02:59.8]}
2... Nc6 {[%clk 0:02:54.4]} 3. Bb5 {[%clk 0:02:59.6]} 3... a6 {[%clk 0:02:52]}
4. Ba4 {[%clk 0:02:58.2]} 4... Nf6 {[%clk 0:02:51.8]} 5. O-O {[%clk 0:02:57.6]}
5... Be7 {[%clk 0:02:52.3]} 6. Re1 {[%clk 0:02:53.3]} 6... b5 {[%clk 0:02:52.6]}
7. Bb3 {[%clk 0:02:53.6]} 7... d6 {[%clk 0:02:53.5]} 8. c3 {[%clk 0:02:53.6]}
8... O-O {[%clk 0:02:53.8]} 9. h3 {[%clk 0:02:53.3]} 9... Na5 {[%clk 0:02:53]}
10. Bc2 {[%clk 0:02:53.6]} 10... c5 {[%clk 0:02:53.5]} 11. d4 {[%clk 0:02:53.4]}
11... Nd7 {[%clk 0:02:53.3]} 12. dxe5 {[%clk 0:02:48.7]} 12... dxe5 {[%clk
0:02:52.7]} 13. a4 {[%clk 0:02:42.5]} 13... b4 {[%clk 0:02:48]} 14. Nbd2 {[%clk
0:02:41]} 14... Qc7 {[%clk 0:02:38.8]} 15. Qe2 {[%clk 0:02:22.8]} 15... Rb8
{[%clk 0:02:34.7]} 16. Nc4 {[%clk 0:02:18.6]} 16... Nxc4 {[%clk 0:02:23.4]} 17.
Qxc4 {[%clk 0:02:18.2]} 17... Nb6 {[%clk 0:02:23.3]} 18. Qe2 {[%clk 0:02:12.9]}
18... Rd8 {[%clk 0:02:13.1]} 19. a5 {[%clk 0:02:12]} 19... Nd7 {[%clk
0:02:08.7]} 20. cxb4 {[%clk 0:01:57.9]} 20... cxb4 {[%clk 0:02:08.2]} 21. Be3
{[%clk 0:01:45.3]} 21... Bc5 {[%clk 0:01:46.9]} 22. Bg5 {[%clk 0:01:18.5]} 22...
f6 {[%clk 0:01:45.3]} 23. Bb3+ {[%clk 0:01:17.2]} 23... Kh8 {[%clk 0:01:44.3]}
24. Be3 {[%clk 0:01:09.2]} 24... Bxe3 {[%clk 0:01:43.3]} 25. Qxe3 {[%clk
0:01:10.1]} 25... Qc5 {[%clk 0:01:38.1]} 26. Qd3 {[%clk 0:00:43.9]} 26... Qe7
{[%clk 0:01:29.9]} 27. Red1 {[%clk 0:00:43.1]} 27... Bb7 {[%clk 0:01:28.1]} 28.
Bd5 {[%clk 0:00:36.4]} 28... Bxd5 {[%clk 0:01:20.1]} 29. Qxd5 {[%clk 0:00:29.7]}
29... Nc5 {[%clk 0:01:19.8]} 30. Qc4 {[%clk 0:00:26.9]} 30... Rdc8 {[%clk
0:01:13.5]} 31. Rd5 {[%clk 0:00:20.3]} 31... Ne6 {[%clk 0:01:10.6]} 32. Qb3
{[%clk 0:00:19.1]} 32... Nf4 {[%clk 0:01:10.2]} 33. Rd2 {[%clk 0:00:13.3]} 33...
Rd8 {[%clk 0:01:04.9]} 34. Rad1 {[%clk 0:00:12.8]} 34... Rxd2 {[%clk 0:00:54.2]}
35. Rxd2 {[%clk 0:00:13.7]} 35... Qc5 {[%clk 0:00:54.5]} 36. Rc2 {[%clk
0:00:06.1]} 36... Qxa5 {[%clk 0:00:53.9]} 37. Kh2 {[%clk 0:00:06.4]} 37... Qb6
{[%clk 0:00:52]} 38. g3 {[%clk 0:00:06.7]} 38... Ne6 {[%clk 0:00:49.2]} 39. Kg2
{[%clk 0:00:07.2]} 39... Nd4 {[%clk 0:00:49.3]} 40. Nxd4 {[%clk 0:00:07.2]}
40... exd4 {[%clk 0:00:50.2]} 41. Rc4 {[%clk 0:00:07.5]} 41... a5 {[%clk
0:00:49.3]} 42. Qd3 {[%clk 0:00:07.6]} 42... Rd8 {[%clk 0:00:49]} 43. b3 {[%clk
0:00:08.1]} 43... h6 {[%clk 0:00:48.1]} 44. h4 {[%clk 0:00:08.2]} 44... Rd6
{[%clk 0:00:44.2]} 45. f4 {[%clk 0:00:08.3]} 45... Rd7 {[%clk 0:00:44.3]} 46. e5
{[%clk 0:00:08.6]} 46... fxe5 {[%clk 0:00:43.8]} 47. fxe5 {[%clk 0:00:09.5]}
47... Qb7+ {[%clk 0:00:44.3]} 48. Kh3 {[%clk 0:00:05.4]} 48... Rd5 {[%clk
0:00:36.9]} 49. Rxd4 {[%clk 0:00:05.3]} 49... Qd7+ {[%clk 0:00:35.8]} 0-1

[Event "*** SCC Grand Prix: Titled Tuesday Blitz"]
[Site "Chess.com"]
[Date "2020.06.02"]
[Round "8"]
[White "Harsha_Bharathakoti"]
[Black "gross-aleks"]
[Result "0-1"]
[WhiteElo "2717"]
[BlackElo "2576"]
[TimeControl "180+1"]
[EndTime "11:37:07 PDT"]
[Termination "gross-aleks won by resignation"]

1. c4 {[%clk 0:03:00.9]} 1... e5 {[%clk 0:02:44.5]} 2. Nc3 {[%clk 0:03:00.6]}
2... Nc6 {[%clk 0:02:44]} 3. e3 {[%clk 0:03:00.6]} 3... Nf6 {[%clk 0:02:42.8]}
4. Nf3 {[%clk 0:03:00.2]} 4... Be7 {[%clk 0:02:39.2]} 5. Qb3 {[%clk 0:02:57.9]}
5... O-O {[%clk 0:02:37.4]} 6. d3 {[%clk 0:02:56.8]} 6... b6 {[%clk 0:02:32.5]}
7. Be2 {[%clk 0:02:57.1]} 7... Bb7 {[%clk 0:02:32.2]} 8. O-O {[%clk 0:02:57.8]}
8... Re8 {[%clk 0:02:29.8]} 9. a3 {[%clk 0:02:57.9]} 9... Bf8 {[%clk 0:02:28.8]}
10. Qc2 {[%clk 0:02:38.7]} 10... d5 {[%clk 0:02:25.1]} 11. cxd5 {[%clk
0:02:39.6]} 11... Nxd5 {[%clk 0:02:25.1]} 12. b3 {[%clk 0:02:39.6]} 12... Nxc3
{[%clk 0:01:34.8]} 13. Qxc3 {[%clk 0:02:40.5]} 13... Bd6 {[%clk 0:01:34.1]} 14.
Bb2 {[%clk 0:02:40.2]} 14... Ne7 {[%clk 0:01:32.1]} 15. b4 {[%clk 0:02:27.9]}
15... Ng6 {[%clk 0:01:29.1]} 16. Rac1 {[%clk 0:02:23.5]} 16... a5 {[%clk
0:01:27.2]} 17. b5 {[%clk 0:02:18.6]} 17... a4 {[%clk 0:01:12.3]} 18. Rfd1
{[%clk 0:02:10.2]} 18... Bd5 {[%clk 0:01:09.1]} 19. Nd2 {[%clk 0:02:09.6]} 19...
Qg5 {[%clk 0:01:03.2]} 20. Ne4 {[%clk 0:02:06.3]} 20... Bxe4 {[%clk 0:00:59.5]}
21. dxe4 {[%clk 0:02:07.2]} 21... Re6 {[%clk 0:00:45.7]} 22. Rd5 {[%clk
0:01:05.9]} 22... Nh4 {[%clk 0:00:41.6]} 23. g3 {[%clk 0:01:05.8]} 23... Rf6
{[%clk 0:00:34.3]} 24. f4 {[%clk 0:00:32.2]} 24... Qg6 {[%clk 0:00:21.6]} 25.
fxe5 {[%clk 0:00:32.5]} 25... Qxe4 {[%clk 0:00:15.2]} 26. gxh4 {[%clk
0:00:22.8]} 26... Rg6+ {[%clk 0:00:14.3]} 27. Kf2 {[%clk 0:00:23.5]} 27... Rg2+
{[%clk 0:00:08.6]} 28. Ke1 {[%clk 0:00:12]} 28... Qxd5 {[%clk 0:00:08.1]} 29.
exd6 {[%clk 0:00:12.7]} 29... Qxd6 {[%clk 0:00:08.2]} 30. Bf3 {[%clk 0:00:09.1]}
30... Rg6 {[%clk 0:00:07.7]} 31. Bxa8 {[%clk 0:00:08.2]} 31... Qxh2 {[%clk
0:00:06.9]} 32. Kd1 {[%clk 0:00:01.9]} 32... Rg1+ {[%clk 0:00:06]} 33. Qe1
{[%clk 0:00:02.6]} 33... Rxe1+ {[%clk 0:00:05.9]} 34. Kxe1 {[%clk 0:00:03.5]}
34... Qxb2 {[%clk 0:00:06.2]} 35. Rxc7 {[%clk 0:00:04.3]} 35... g6 {[%clk
0:00:06.7]} 36. Bd5 {[%clk 0:00:03.6]} 36... Qxa3 {[%clk 0:00:06]} 37. Bxf7+
{[%clk 0:00:03.2]} 37... Kh8 {[%clk 0:00:06.2]} 38. Ke2 {[%clk 0:00:03.9]} 38...
Qb4 {[%clk 0:00:06.6]} 39. Bc4 {[%clk 0:00:03.5]} 39... a3 {[%clk 0:00:07.1]}
40. Kd3 {[%clk 0:00:04.2]} 40... a2 {[%clk 0:00:05.9]} 41. Ra7 {[%clk
0:00:04.8]} 41... Qb1+ {[%clk 0:00:05.4]} 0-1

[Event "*** SCC Grand Prix: Titled Tuesday Blitz"]
[Site "Chess.com"]
[Date "2020.06.02"]
[Round "8"]
[White "WeAintSurePal"]
[Black "Alopekos"]
[Result "0-1"]
[WhiteElo "2271"]
[BlackElo "2507"]
[TimeControl "180+1"]
[EndTime "11:37:07 PDT"]
[Termination "Alopekos won by resignation"]

1. d4 {[%clk 0:03:00.9]} 1... Nf6 {[%clk 0:02:59.7]} 2. c4 {[%clk 0:02:58.1]}
2... e6 {[%clk 0:03:00.1]} 3. Nc3 {[%clk 0:02:57.1]} 3... d5 {[%clk 0:03:00.5]}
4. Bg5 {[%clk 0:02:54.5]} 4... dxc4 {[%clk 0:03:00.3]} 5. Nf3 {[%clk 0:02:46.6]}
5... c5 {[%clk 0:02:58.7]} 6. e3 {[%clk 0:02:43.1]} 6... cxd4 {[%clk 0:02:57.7]}
7. exd4 {[%clk 0:02:44]} 7... Nc6 {[%clk 0:02:55]} 8. Bxc4 {[%clk 0:02:40.2]}
8... Be7 {[%clk 0:02:55.5]} 9. O-O {[%clk 0:02:40.3]} 9... O-O {[%clk 0:02:56]}
10. a3 {[%clk 0:02:29]} 10... Nd5 {[%clk 0:02:29.5]} 11. Bxe7 {[%clk 0:02:10.2]}
11... Ncxe7 {[%clk 0:02:30.4]} 12. Qe2 {[%clk 0:02:06.3]} 12... b6 {[%clk
0:02:18]} 13. Rad1 {[%clk 0:02:01.5]} 13... Bb7 {[%clk 0:02:17.1]} 14. Ne5
{[%clk 0:01:59.4]} 14... Nf5 {[%clk 0:01:50.4]} 15. Nxd5 {[%clk 0:01:54.4]}
15... Bxd5 {[%clk 0:01:49.2]} 16. Bd3 {[%clk 0:01:36.8]} 16... Qg5 {[%clk
0:01:39.6]} 17. f4 {[%clk 0:01:27.2]} 17... Qf6 {[%clk 0:01:33.4]} 18. Bb1
{[%clk 0:01:21.9]} 18... Rfd8 {[%clk 0:01:25.5]} 19. g4 {[%clk 0:01:04.5]} 19...
Nd6 {[%clk 0:01:09.8]} 20. g5 {[%clk 0:00:59.1]} 20... Qe7 {[%clk 0:01:09.1]}
21. Rd3 {[%clk 0:00:47.8]} 21... Be4 {[%clk 0:00:26]} 22. Rh3 {[%clk 0:00:47]}
22... Bxb1 {[%clk 0:00:26.2]} 23. Rxb1 {[%clk 0:00:47.4]} 23... f6 {[%clk
0:00:16]} 24. Nc6 {[%clk 0:00:17.8]} 24... Qf7 {[%clk 0:00:10.8]} 25. Re1 {[%clk
0:00:15.5]} 25... Re8 {[%clk 0:00:09.3]} 26. gxf6 {[%clk 0:00:13.6]} 26... gxf6
{[%clk 0:00:09.1]} 27. Rg3+ {[%clk 0:00:13.7]} 27... Kh8 {[%clk 0:00:09.2]} 28.
Kh1 {[%clk 0:00:12.2]} 28... Nf5 {[%clk 0:00:09.2]} 29. Rh3 {[%clk 0:00:12.3]}
29... a5 {[%clk 0:00:05.9]} 30. Qe4 {[%clk 0:00:12.4]} 30... Rac8 {[%clk
0:00:04.7]} 31. d5 {[%clk 0:00:11.4]} 31... Qd7 {[%clk 0:00:04.3]} 32. dxe6
{[%clk 0:00:11.1]} 32... Qxc6 {[%clk 0:00:04.3]} 33. Qxc6 {[%clk 0:00:10]} 33...
Rxc6 {[%clk 0:00:05.2]} 34. Rh5 {[%clk 0:00:09.4]} 34... Ng7 {[%clk 0:00:05.4]}
35. Rh6 {[%clk 0:00:07.7]} 35... Rcxe6 {[%clk 0:00:05.7]} 36. Rg1 {[%clk
0:00:07.3]} 36... Nf5 {[%clk 0:00:05.2]} 37. Rh5 {[%clk 0:00:07.3]} 37... Ng7
{[%clk 0:00:05.6]} 38. Rh4 {[%clk 0:00:06.7]} 38... Re1 {[%clk 0:00:05.4]} 39.
Rg4 {[%clk 0:00:06.6]} 39... Rxg1+ {[%clk 0:00:05.5]} 40. Rxg1 {[%clk
0:00:07.5]} 40... Nf5 {[%clk 0:00:05.3]} 41. Rc1 {[%clk 0:00:07.8]} 41... Re2
{[%clk 0:00:05]} 42. Rc6 {[%clk 0:00:07.8]} 42... Rxb2 {[%clk 0:00:05]} 43. Rxf6
{[%clk 0:00:07.5]} 43... Nh4 {[%clk 0:00:05.2]} 44. Rc6 {[%clk 0:00:05.9]} 44...
Nf3 {[%clk 0:00:05]} 0-1

[Event "*** SCC Grand Prix: Titled Tuesday Blitz"]
[Site "Chess.com"]
[Date "2020.06.02"]
[Round "8"]
[White "WinstonSilvakov"]
[Black "silverback96"]
[Result "1-0"]
[WhiteElo "2086"]
[BlackElo "2210"]
[TimeControl "180+1"]
[EndTime "11:37:07 PDT"]
[Termination "WinstonSilvakov won by resignation"]

1. d4 {[%clk 0:03:00.9]} 1... d5 {[%clk 0:02:59.5]} 2. e3 {[%clk 0:03:00.7]}
2... Nf6 {[%clk 0:02:57.8]} 3. Bd3 {[%clk 0:03:01]} 3... g6 {[%clk 0:02:53.4]}
4. Nd2 {[%clk 0:03:00.5]} 4... Bg7 {[%clk 0:02:54]} 5. f4 {[%clk 0:03:00.1]}
5... O-O {[%clk 0:02:54]} 6. Ngf3 {[%clk 0:03:00]} 6... c5 {[%clk 0:02:54.4]} 7.
c3 {[%clk 0:02:59.5]} 7... Nbd7 {[%clk 0:02:55]} 8. O-O {[%clk 0:02:58.4]} 8...
b6 {[%clk 0:02:55.5]} 9. Ne5 {[%clk 0:02:56.8]} 9... Bb7 {[%clk 0:02:55.9]} 10.
Qf3 {[%clk 0:02:55.2]} 10... Rc8 {[%clk 0:02:53.7]} 11. g4 {[%clk 0:02:41.7]}
11... Ne8 {[%clk 0:02:21.1]} 12. g5 {[%clk 0:02:35.2]} 12... Nd6 {[%clk
0:02:20.5]} 13. b3 {[%clk 0:02:27.9]} 13... f6 {[%clk 0:02:20.4]} 14. Nxg6
{[%clk 0:02:26.3]} 14... hxg6 {[%clk 0:02:21.3]} 15. Bxg6 {[%clk 0:02:25.9]}
15... fxg5 {[%clk 0:02:20.1]} 16. Qh5 {[%clk 0:02:25.2]} 16... Rf6 {[%clk
0:02:20.4]} 17. Qh7+ {[%clk 0:02:13.2]} 17... Kf8 {[%clk 0:02:20]} 18. Nf3
{[%clk 0:02:07.1]} 18... Ne4 {[%clk 0:02:08.7]} 19. fxg5 {[%clk 0:02:01.1]}
19... Rxg6 {[%clk 0:01:50.6]} 20. Qxg6 {[%clk 0:01:59.7]} 20... Kg8 {[%clk
0:01:51.5]} 21. Qe6+ {[%clk 0:01:54.7]} 21... Kh8 {[%clk 0:01:50]} 22. g6 {[%clk
0:01:54]} 22... Ndf6 {[%clk 0:01:45.7]} 23. Ne5 {[%clk 0:01:47.9]} 23... Ng5
{[%clk 0:01:29.4]} 24. Qf5 {[%clk 0:01:36.5]} 24... Nfe4 {[%clk 0:01:28.3]} 25.
Nf7+ {[%clk 0:01:26.5]} 25... Nxf7 {[%clk 0:01:26.2]} 26. gxf7 {[%clk
0:01:26.9]} 26... Bh6 {[%clk 0:01:18.6]} 27. dxc5 {[%clk 0:01:02.9]} 27... Qf8
{[%clk 0:01:08.2]} 28. Bb2 {[%clk 0:00:54.7]} 28... Qg7+ {[%clk 0:01:04]} 29.
Kh1 {[%clk 0:00:39.4]} 29... d4 {[%clk 0:01:04.3]} 30. c6 {[%clk 0:00:21.2]}
30... Bxc6 {[%clk 0:01:02.8]} 31. Qxc8+ {[%clk 0:00:19.6]} 31... Kh7 {[%clk
0:01:01.1]} 32. Qg8+ {[%clk 0:00:18.9]} 32... Qxg8 {[%clk 0:01:00.9]} 33.
fxg8=Q+ {[%clk 0:00:19.8]} 33... Kxg8 {[%clk 0:01:01.8]} 34. Kg2 {[%clk
0:00:16.9]} 34... Nd2+ {[%clk 0:00:46.6]} 35. Kh3 {[%clk 0:00:14.6]} 35... dxe3
{[%clk 0:00:40.6]} 36. Rfe1 {[%clk 0:00:10.3]} 36... Bf3 {[%clk 0:00:36.5]} 37.
Bc1 {[%clk 0:00:10.4]} 37... Bf4 {[%clk 0:00:34.1]} 38. Rg1+ {[%clk 0:00:09.8]}
38... Kf7 {[%clk 0:00:33.3]} 39. Bxd2 {[%clk 0:00:09.4]} 39... exd2 {[%clk
0:00:34.2]} 40. Rgf1 {[%clk 0:00:09.6]} 40... d1=Q {[%clk 0:00:32.4]} 41. Raxd1
{[%clk 0:00:09.9]} 41... Bxd1 {[%clk 0:00:33.3]} 42. Rxf4+ {[%clk 0:00:10.6]}
42... Ke8 {[%clk 0:00:33.1]} 43. Rd4 {[%clk 0:00:11.5]} 43... Bc2 {[%clk
0:00:31.9]} 44. Kg3 {[%clk 0:00:11.8]} 44... e5 {[%clk 0:00:32.1]} 45. Rd5
{[%clk 0:00:10.7]} 45... e4 {[%clk 0:00:32.3]} 46. Kf4 {[%clk 0:00:10.7]} 46...
Kf7 {[%clk 0:00:32.5]} 47. h4 {[%clk 0:00:11.3]} 47... Bb1 {[%clk 0:00:32.6]}
48. a3 {[%clk 0:00:10.2]} 48... Ba2 {[%clk 0:00:32.5]} 49. Rd7+ {[%clk
0:00:09.8]} 49... Ke6 {[%clk 0:00:32.2]} 50. Rxa7 {[%clk 0:00:10.7]} 50... Bxb3
{[%clk 0:00:31.9]} 51. Ra6 {[%clk 0:00:11.6]} 51... Kd5 {[%clk 0:00:28.1]} 52.
Rxb6 {[%clk 0:00:12.5]} 52... Kc4 {[%clk 0:00:28.2]} 53. Kxe4 {[%clk 0:00:11.7]}
1-0